[Event "Fagernes Chess Open 2025"]
[Site "Fagernes"]
[Date "2025.04.17"]
[Round "6.18"]
[White "Holten, Terje"]
[Black "Dybvik, Bjorn Noralf"]
[Result "0-1"]
[Annotator "NA RC"]
[ECO "D78"]
[WhiteElo "1566"]
[BlackElo "1686"]
[PlyCount "76"]
[EventDate "2025.04.12"]
[EventCountry "NOR"]
[SourceTitle "playchess.com"]
[Source "ChessBase"]
[SourceQuality "1"]
[TimeControl "40/6000+30:2400+30"]

1. d4 {[%emt 0:00:02]} Nf6 {[%emt 0:00:22]} 2. Nf3 {[%emt 0:00:06]} d5 {[%emt 0:00:42]} 3. g3 {[%emt 0:00:09]} g6 {[%emt 0:01:24]} 4. Bg2 {[%emt 0:00:16]} Bg7 {[%emt 0:00:22]} 5. O-O {[%emt 0:00:14]} O-O {[%emt 0:01:00]} 6. Nbd2 {[%emt 0:00:50]} Nbd7 {[%emt 0:01:13]} 7. c4 {[%emt 0:01:02]} c6 {[%emt 0:01:52]} 8. b3 {[%emt 0:04:07]} Re8 {[%emt 0:01:36]} 9. Bb2 {[%emt 0:01:48]} a5 {[%emt 0:08:06]} 10. Re1 {[%emt 0:03:03]} Qb6 {[%emt 0:05:55]} 11. e3 {[%emt 0:06:06]} h6 {[%emt 0:06:06]} 12. cxd5 {[%emt 0:02:32]} cxd5 {[%emt 0:01:23]} 13. a4 {[%emt 0:08:17]} Ne4 {[%emt 0:02:46]} 14. Nxe4 {[%emt 0:03:10]} dxe4 {[%emt 0:00:27]} 15. Nd2 {[%emt 0:00:16]} f5 {[%emt 0:02:33]} 16. Nc4 {[%emt 0:02:10]} Qd8 {[%emt 0:01:34]} 17. Rb1 {[%emt 0:02:00]} Nf6 {[%emt 0:06:03]} 18. Qc2 {[%emt 0:06:47]} Nd5 {[%emt 0:02:23]} 19. Bf1 {[%emt 0:07:27]} Bd7 {[%emt 0:03:49]} 20. Qd2 {[%emt 0:03:03]} b6 {[%emt 0:02:32]} 21. Red1 {[%emt 0:01:52]} Rc8 {[%emt 0:03:00]} 22. Ne5 {[%emt 0:03:37]} g5 {[%emt 0:05:58]} 23. Nxd7 {[%emt 0:00:59]} Qxd7 {[%emt 0:02:53]} 24. Bb5 {[%emt 0:00:11]} Qd8 {[%emt 0:02:39]} 25. Bxe8 {[%emt 0:00:10]} Qxe8 {[%emt 0:00:06]} 26. Rdc1 {[%emt 0:02:01]} Rd8 {[%emt 0:02:08]} 27. Qe2 {[%emt 0:01:14]} Qg6 {[%emt 0:01:46]} 28. Rc4 {[%emt 0:03:37]} h5 {[%emt 0:05:29]} 29. Rbc1 {[%emt 0:00:44]} f4 {[%emt 0:04:07]} 30. Rc8 {[%emt 0:03:03]} Rxc8 {[%emt 0:01:25]} 31. Rxc8+ {[%emt 0:00:09]} Kh7 {[%emt 0:01:07]} 32. exf4 {[%emt 0:02:58]} gxf4 {[%emt 0:01:14]} 33. Kf1 {[%emt 0:10:59]} Qf5 {[%emt 0:04:37]} 34. Qc2 {[%emt 0:03:22]} Nb4 {[%emt 0:05:38]} 35. Qc1 {[%emt 0:02:15]} Qh3+ {[%emt 0:02:00]} 36. Ke2 {[%emt 0:00:15]} f3+ {[%emt 0:02:50]} 37. Kd1 {[%emt 0:01:33]} Qf1+ {[%emt 0:00:45]} 38. Kd2 {[%emt 0:00:11]} Bh6+ {[%emt 0:01:15]} 0-1

[Event "Fagernes Chess Open 2025"]
[Site "Fagernes"]
[Date "2025.04.17"]
[Round "6.19"]
[White "Johansson, Henrik"]
[Black "Jullum, Hege Ibsen"]
[Result "1/2-1/2"]
[Annotator "NA RC"]
[ECO "A46"]
[WhiteElo "1730"]
[BlackElo "1484"]
[PlyCount "80"]
[EventDate "2025.04.12"]
[EventCountry "NOR"]
[SourceTitle "playchess.com"]
[Source "ChessBase"]
[SourceQuality "1"]
[TimeControl "40/6000+30:2400+30"]

1. d4 {[%emt 0:00:24]} d6 {[%emt 0:00:48]} 2. Nf3 {[%emt 0:01:09]} Nf6 {[%emt 0:00:16]} 3. e3 {[%emt 0:01:06]} Nbd7 {[%emt 0:00:11]} 4. Nc3 {[%emt 0:04:31]} e5 {[%emt 0:01:14]} 5. dxe5 {[%emt 0:02:33]} dxe5 {[%emt 0:00:40]} 6. Bc4 {[%emt 0:01:19]} Bb4 {[%emt 0:00:30]} 7. Bd2 {[%emt 0:03:42]} Bd6 {[%emt 0:02:03]} 8. Ng5 {[%emt 0:06:02]} O-O {[%emt 0:00:43]} 9. Nce4 {[%emt 0:01:02]} Nxe4 {[%emt 0:01:26]} 10. Nxe4 {[%emt 0:05:29]} Nf6 {[%emt 0:03:30]} 11. Nxd6 {[%emt 0:04:06]} Qxd6 {[%emt 0:03:48]} 12. O-O {[%emt 0:02:05]} Be6 {[%emt 0:04:51]} 13. Bxe6 {[%emt 0:04:20]} Qxe6 {[%emt 0:00:52]} 14. Qf3 {[%emt 0:01:43]} Qd5 {[%emt 0:02:56]} 15. Qe2 {[%emt 0:01:48]} Rfd8 {[%emt 0:03:01]} 16. Rfd1 {[%emt 0:01:19]} Qe6 {[%emt 0:01:33]} 17. Bc3 {[%emt 0:03:05]} b6 {[%emt 0:04:11]} 18. Rxd8+ {[%emt 0:04:02]} Rxd8 {[%emt 0:00:33]} 19. Rd1 {[%emt 0:01:02]} Nd7 {[%emt 0:05:07]} 20. Qa6 {[%emt 0:03:07]} Qe7 {[%emt 0:06:07]} 21. Qxa7 {[%emt 0:01:25]} Nc5 {[%emt 0:03:47]} 22. Rf1 {[%emt 0:06:24]} f6 {[%emt 0:05:00]} 23. Qa3 {[%emt 0:00:31]} Qd7 {[%emt 0:03:20]} 24. g3 {[%emt 0:02:28]} Qa4 {[%emt 0:01:11]} 25. Bb4 {[%emt 0:03:41]} Qxc2 {[%emt 0:03:07]} 26. Bxc5 {[%emt 0:00:00]} bxc5 {[%emt 0:03:21]} 27. Qb3+ {[%emt 0:03:56]} Qxb3 {[%emt 0:00:31]} 28. axb3 {[%emt 0:00:04]} Rb8 {[%emt 0:00:35]} 29. Rc1 {[%emt 0:00:44]} Rxb3 {[%emt 0:02:26]} 30. Rxc5 {[%emt 0:00:52]} Rb7 {[%emt 0:03:02]} 31. b4 {[%emt 0:01:12]} Kf7 {[%emt 0:03:42]} 32. b5 {[%emt 0:01:08]} Ke6 {[%emt 0:02:21]} 33. e4 {[%emt 0:00:29]} Kd7 {[%emt 0:03:51]} 34. f4 {[%emt 0:02:23]} Ke6 {[%emt 0:03:40]} 35. f5+ {[%emt 0:00:56]} Kd7 {[%emt 0:01:03]} 36. g4 {[%emt 0:01:47]} Rb6 {[%emt 0:00:33]} 37. h4 {[%emt 0:00:53]} Rd6 {[%emt 0:01:01]} 38. g5 {[%emt 0:02:35]} Rd4 {[%emt 0:00:09]} 39. gxf6 {[%emt 0:03:54]} gxf6 {[%emt 0:00:44]} 40. Rc6 {[%emt 0:01:23]} Rd6 {[%emt 0:01:51]} 1/2-1/2